[Event "First GM Mix Bassano 2021"]
[Site "Bassano del Grappa"]
[Date "2021.03.21"]
[Round "9.3"]
[White "Marasa, Giuseppe"]
[Black "Basso, Pier Luigi"]
[Result "0-1"]
[ECO "B06"]
[WhiteElo "1952"]
[BlackElo "2521"]
[Annotator "RC"]
[PlyCount "114"]
[EventDate "2021.03.17"]
[EventType "swiss"]
[EventCountry "ITA"]
[SourceTitle "playchess.com"]
[Source "ChessBase"]
[SourceQuality "1"]
[TimeControl "5400+30"]

1. d4 {[%emt 0:00:00]} g6 {[%emt 0:09:25]} 2. e4 {[%emt 0:00:51]} Bg7 {[%emt 0:00:10]} 3. Nc3 {[%emt 0:01:31]} d5 {[%emt 0:01:23]} 4. exd5 {[%emt 0:10:09]} Nf6 {[%emt 0:00:17]} 5. Nf3 {[%emt 0:04:11]} Nxd5 {[%emt 0:03:06]} 6. Nxd5 {[%emt 0:04:02]} Qxd5 {[%emt 0:00:16]} 7. c3 {[%emt 0:02:27]} O-O {[%emt 0:01:16]} 8. Be2 {[%emt 0:04:17]} c5 {[%emt 0:01:27]} 9. dxc5 {[%emt 0:02:15]} Qxc5 {[%emt 0:00:10]} 10. Be3 {[%emt 0:01:07]} Qc7 {[%emt 0:00:05]} 11. O-O {[%emt 0:03:10]} Nc6 {[%emt 0:00:14]} 12. Qa4 {[%emt 0:02:40]} e5 {[%emt 0:02:19]} 13. Qh4 {[%emt 0:06:10]} Ne7 {[%emt 0:02:20]} 14. Qc4 {[%emt 0:12:00]} Nc6 {[%emt 0:06:37]} 15. Qh4 {[%emt 0:02:05]} f6 {[%emt 0:00:36]} 16. Qc4+ {[%emt 0:05:33]} Qf7 {[%emt 0:01:46]} 17. Qxf7+ {[%emt 0:04:50]} Kxf7 {[%emt 0:00:11]} 18. Bc4+ {[%emt 0:00:27]} Be6 {[%emt 0:00:04]} 19. Bxe6+ {[%emt 0:00:20]} Kxe6 {[%emt 0:00:02]} 20. Rad1 {[%emt 0:00:38]} Rfd8 {[%emt 0:00:38]} 21. Rfe1 {[%emt 0:00:54]} Bf8 {[%emt 0:01:48]} 22. Kf1 {[%emt 0:04:33]} b5 {[%emt 0:00:15]} 23. Ke2 {[%emt 0:01:58]} a5 {[%emt 0:01:02]} 24. Rxd8 {[%emt 0:02:26]} Rxd8 {[%emt 0:00:06]} 25. Rd1 {[%emt 0:00:41]} Rb8 {[%emt 0:00:23]} 26. Nd2 {[%emt 0:03:04]} f5 {[%emt 0:02:41]} 27. f3 {[%emt 0:03:42]} a4 {[%emt 0:04:15]} 28. Kd3 {[%emt 0:04:29]} Ne7 {[%emt 0:01:20]} 29. Bc5 {[%emt 0:02:12]} Nd5 {[%emt 0:00:49]} 30. Bxf8 {[%emt 0:00:19]} Rxf8 {[%emt 0:00:08]} 31. g3 {[%emt 0:01:32]} Rd8 {[%emt 0:00:29]} 32. Ra1 {[%emt 0:05:14]} h5 {[%emt 0:02:03]} 33. c4 {[%emt 0:02:22]} bxc4+ {[%emt 0:04:20]} 34. Nxc4 {[%emt 0:01:05]} Nb6+ {[%emt 0:01:09]} 35. Kc3 {[%emt 0:00:07]} Nxc4 {[%emt 0:00:09]} 36. Kxc4 {[%emt 0:00:10]} Rd2 {[%emt 0:00:04]} 37. b4 {[%emt 0:00:45]} axb3 {[%emt 0:02:33]} 38. axb3 {[%emt 0:00:02]} Rc2+ {[%emt 0:00:10]} 39. Kb5 {[%emt 0:00:20]} Rxh2 {[%emt 0:01:08]} 40. b4 {[%emt 0:02:43]} f4 {[%emt 0:00:59]} 41. gxf4 {[%emt 0:01:37]} exf4 {[%emt 0:00:03]} 42. Kc5 {[%emt 0:00:38]} Rf2 {[%emt 0:06:57]} 43. b5 {[%emt 0:00:49]} Rxf3 {[%emt 0:00:53]} 44. Kc4 {[%emt 0:00:43]} Kd7 {[%emt 0:00:34]} 45. Ra7+ {[%emt 0:00:43]} Kc8 {[%emt 0:00:02]} 46. Rg7 {[%emt 0:00:11]} Rg3 {[%emt 0:00:20]} 47. Kc5 {[%emt 0:00:27]} Rg1 {[%emt 0:04:04]} 48. Kc6 {[%emt 0:00:28]} Rc1+ {[%emt 0:00:07]} 49. Kd5 {[%emt 0:00:52]} f3 {[%emt 0:00:08]} 50. Rf7 {[%emt 0:00:31]} Rc3 {[%emt 0:00:56]} 51. Ke4 {[%emt 0:00:31]} g5 {[%emt 0:00:13]} 52. Rf5 {[%emt 0:00:17]} g4 {[%emt 0:00:26]} 53. Rxh5 {[%emt 0:00:47]} f2 {[%emt 0:00:13]} 54. Rh8+ {[%emt 0:01:05]} Kb7 {[%emt 0:00:11]} 55. Rh7+ {[%emt 0:00:00]} Kb6 {[%emt 0:00:10]} 56. Rh6+ {[%emt 0:00:27]} Kxb5 {[%emt 0:00:07]} 57. Rh1 {[%emt 0:00:03]} g3 {[%emt 0:00:30]} 0-1

[Event "First GM Mix Bassano 2021"]
[Site "Bassano del Grappa"]
[Date "2021.03.21"]
[Round "9.5"]
[White "Frick, Cristopher"]
[Black "Grimaldi, Angela Flavia"]
[Result "0-1"]
[ECO "C41"]
[WhiteElo "2051"]
[BlackElo "2067"]
[Annotator "NA"]
[PlyCount "43"]
[EventDate "2021.03.17"]
[EventType "swiss"]
[EventCountry "ITA"]
[SourceTitle "playchess.com"]
[Source "ChessBase"]
[SourceQuality "1"]
[TimeControl "5400+30"]

1. e4 {[%emt 0:01:06]} d6 {[%emt 0:00:57]} 2. d4 {[%emt 0:00:06]} Nf6 {[%emt 0:00:18]} 3. Nc3 {[%emt 0:00:05]} e5 {[%emt 0:00:09]} 4. Nf3 {[%emt 0:00:04]} Nbd7 {[%emt 0:00:07]} 5. Rg1 {[%emt 0:00:07]} Be7 {[%emt 0:01:50]} 6. g4 {[%emt 0:00:16]} O-O {[%emt 0:00:06]} 7. g5 {[%emt 0:00:06]} Nh5 {[%emt 0:02:03]} 8. Nh4 {[%emt 0:00:57]} g6 {[%emt 0:07:42]} 9. Nf5 {[%emt 0:00:17]} Nb6 {[%emt 0:02:26]} 10. Be2 {[%emt 0:02:41]} Ng7 {[%emt 0:01:17]} 11. Nxg7 {[%emt 0:05:08]} Kxg7 {[%emt 0:00:15]} 12. Be3 {[%emt 0:00:03]} f5 {[%emt 0:00:36]} 13. gxf6+ {[%emt 0:00:50]} Bxf6 {[%emt 0:00:07]} 14. d5 {[%emt 0:00:16]} c6 {[%emt 0:00:49]} 15. Qd2 {[%emt 0:00:36]} Kh8 {[%emt 0:00:11]} 16. O-O-O {[%emt 0:00:50]} cxd5 {[%emt 0:07:13]} 17. Nxd5 {[%emt 0:02:03]} Nxd5 {[%emt 0:03:35]} 18. Qxd5 {[%emt 0:00:08]} Be7 {[%emt 0:00:04]} 19. Bc4 {[%emt 0:03:31]} Qe8 {[%emt 0:07:17]} 20. f4 {[%emt 0:02:37]} Bd7 {[%emt 0:03:20]} 21. f5 {[%emt 0:02:18]} Bc6 {[%emt 0:02:06]} 22. Qd3 {[%emt 0:06:09]} 0-1